[Event "Titled Tuesday Blitz May 30 Early 2023"]
[White "Kramnik, Vladimir"]
[Black "Makarian, Rudik"]
[WhiteFideId "4101588"]
[BlackFideId "44105681"]
[WhiteElo "2703"]
[BlackElo "2461"]
[Result "1/2-1/2"]
[Round "08"]
[TimeControl "180+2"]
[Date "2023.05.30"]
[WhiteClock "0:00:01"]
[BlackClock "0:00:01"]

1. e4 {[%clk 0:03:00]}  c5 {[%clk 0:02:54]} 2. Nf3 {[%clk 0:03:00]}  d6 {[%clk 0:02:53]} 3. d4 {[%clk 0:03:00]}  cxd4 {[%clk 0:02:54]} 4. Nxd4 {[%clk 0:02:59]}  Nf6 {[%clk 0:02:55]} 5. Nc3 {[%clk 0:02:59]}  Nc6 {[%clk 0:02:55]} 6. Be2 {[%clk 0:02:59]}  e6 {[%clk 0:02:50]} 7. O-O {[%clk 0:02:58]}  Be7 {[%clk 0:02:50]} 8. Nxc6 {[%clk 0:02:56]}  bxc6 {[%clk 0:02:50]} 9. Qd3 {[%clk 0:02:57]}  d5 {[%clk 0:02:48]} 10. Qg3 {[%clk 0:02:54]}  O-O {[%clk 0:02:45]} 11. Bh6 {[%clk 0:02:46]}  Ne8 {[%clk 0:02:45]} 12. Bf4 {[%clk 0:02:42]}  a5 {[%clk 0:02:38]} 13. Rad1 {[%clk 0:02:27]}  Bd6 {[%clk 0:02:21]} 14. e5 {[%clk 0:02:10]}  Be7 {[%clk 0:02:18]} 15. Ne4 {[%clk 0:02:00]}  Ba6 {[%clk 0:02:07]} 16. c4 {[%clk 0:01:56]}  Qb6 {[%clk 0:01:50]} 17. Ng5 {[%clk 0:01:43]}  Bxc4 {[%clk 0:01:35]} 18. Bxc4 {[%clk 0:01:38]}  dxc4 {[%clk 0:01:36]} 19. Rd7 {[%clk 0:01:17]}  Ra7 {[%clk 0:01:35]} 20. Be3 {[%clk 0:01:08]}  Bc5 {[%clk 0:01:05]} 21. Bxc5 {[%clk 0:00:30]}  Qxc5 {[%clk 0:01:06]} 22. Ne4 {[%clk 0:00:30]}  Qb6 {[%clk 0:01:06]} 23. Nf6+ {[%clk 0:00:13]}  Kh8 {[%clk 0:01:00]} 24. Qa3 {[%clk 0:00:14]}  c5 {[%clk 0:00:54]} 25. Rxa7 {[%clk 0:00:14]}  Qxa7 {[%clk 0:00:52]} 26. Ne4 {[%clk 0:00:14]}  Nc7 {[%clk 0:00:47]} 27. g3 {[%clk 0:00:11]}  Nd5 {[%clk 0:00:43]} 28. Qxc5 {[%clk 0:00:07]}  Qxc5 {[%clk 0:00:40]} 29. Nxc5 {[%clk 0:00:07]}  Rb8 {[%clk 0:00:41]} 30. Rc1 {[%clk 0:00:05]}  Rxb2 {[%clk 0:00:36]} 31. Rxc4 {[%clk 0:00:05]}  g5 {[%clk 0:00:24]} 32. Ra4 {[%clk 0:00:05]}  Rb5 {[%clk 0:00:19]} 33. Ne4 {[%clk 0:00:05]}  h6 {[%clk 0:00:18]} 34. Nd6 {[%clk 0:00:04]}  Rb1+ {[%clk 0:00:16]} 35. Kg2 {[%clk 0:00:04]}  Kg7 {[%clk 0:00:12]} 36. Rxa5 {[%clk 0:00:04]}  Kg6 {[%clk 0:00:10]} 37. Ra3 {[%clk 0:00:03]}  Rb2 {[%clk 0:00:09]} 38. Rf3 {[%clk 0:00:03]}  g4 {[%clk 0:00:07]} 39. Ra3 {[%clk 0:00:02]}  h5 {[%clk 0:00:07]} 40. Ne4 {[%clk 0:00:02]}  Kf5 {[%clk 0:00:07]} 41. Nd6+ {[%clk 0:00:01]}  Kg6 {[%clk 0:00:05]} 42. Nc4 {[%clk 0:00:01]}  Rc2 {[%clk 0:00:05]} 43. Ne3 {[%clk 0:00:01]}  Nxe3+ {[%clk 0:00:06]} 44. Rxe3 {[%clk 0:00:01]}  Rxa2 {[%clk 0:00:06]} 45. Re4 {[%clk 0:00:02]}  Ra5 {[%clk 0:00:06]} 46. h3 {[%clk 0:00:01]}  Kg5 {[%clk 0:00:05]} 47. hxg4 {[%clk 0:00:01]}  hxg4 {[%clk 0:00:06]} 48. Rf4 {[%clk 0:00:01]}  Rxe5 {[%clk 0:00:01]} 1/2-1/2


[Site "https://www.chess.com"]

[Event "Titled Tuesday Blitz May 30 Early 2023"]
[White "Pranav, V"]
[Black "Kovalenko, Igor"]
[WhiteFideId "25060783"]
[BlackFideId "14117908"]
[WhiteElo "2515"]
[BlackElo "2574"]
[Result "0-1"]
[Round "08"]
[TimeControl "180+2"]
[Date "2023.05.30"]
[WhiteClock "0:00:24"]
[BlackClock "0:01:15"]

1. e4 {[%clk 0:03:00]}  e6 {[%clk 0:02:59]} 2. d3 {[%clk 0:02:58]}  d5 {[%clk 0:03:00]} 3. Nd2 {[%clk 0:02:59]}  Ne7 {[%clk 0:02:59]} 4. Ngf3 {[%clk 0:02:59]}  g6 {[%clk 0:02:58]} 5. h4 {[%clk 0:02:56]}  h6 {[%clk 0:02:58]} 6. g3 {[%clk 0:02:55]}  Bg7 {[%clk 0:02:58]} 7. Bg2 {[%clk 0:02:56]}  b6 {[%clk 0:02:57]} 8. O-O {[%clk 0:02:56]}  Bb7 {[%clk 0:02:58]} 9. Re1 {[%clk 0:02:57]}  c5 {[%clk 0:02:55]} 10. e5 {[%clk 0:02:52]}  Nbc6 {[%clk 0:02:54]} 11. Nf1 {[%clk 0:02:52]}  Qc7 {[%clk 0:02:54]} 12. Qe2 {[%clk 0:02:51]}  Nf5 {[%clk 0:02:53]} 13. c3 {[%clk 0:02:41]}  a5 {[%clk 0:02:49]} 14. N1h2 {[%clk 0:02:40]}  a4 {[%clk 0:02:48]} 15. Ng4 {[%clk 0:02:37]}  Qe7 {[%clk 0:02:39]} 16. Bf4 {[%clk 0:02:01]}  b5 {[%clk 0:02:14]} 17. Qd1 {[%clk 0:01:55]}  c4 {[%clk 0:02:13]} 18. dxc4 {[%clk 0:01:47]}  bxc4 {[%clk 0:02:12]} 19. Rb1 {[%clk 0:01:47]}  O-O {[%clk 0:02:08]} 20. Qd2 {[%clk 0:01:39]}  Kh7 {[%clk 0:02:08]} 21. Rbd1 {[%clk 0:01:35]}  Rfd8 {[%clk 0:02:05]} 22. Qc1 {[%clk 0:01:32]}  a3 {[%clk 0:02:02]} 23. Nf6+ {[%clk 0:01:13]}  Bxf6 {[%clk 0:02:01]} 24. exf6 {[%clk 0:01:14]}  Qxf6 {[%clk 0:02:02]} 25. bxa3 {[%clk 0:01:14]}  Ra7 {[%clk 0:01:46]} 26. g4 {[%clk 0:00:50]}  Nxh4 {[%clk 0:01:46]} 27. Nxh4 {[%clk 0:00:50]}  Qxh4 {[%clk 0:01:46]} 28. Bxh6 {[%clk 0:00:51]}  Qxh6 {[%clk 0:01:45]} 29. g5 {[%clk 0:00:50]}  Qg7 {[%clk 0:01:32]} 30. Re3 {[%clk 0:00:49]}  Kg8 {[%clk 0:01:32]} 31. Rh3 {[%clk 0:00:47]}  Rda8 {[%clk 0:01:28]} 32. Bf3 {[%clk 0:00:41]}  Ne5 {[%clk 0:01:27]} 33. Qf4 {[%clk 0:00:37]}  Nxf3+ {[%clk 0:01:26]} 34. Qxf3 {[%clk 0:00:35]}  d4 {[%clk 0:01:25]} 35. Qf4 {[%clk 0:00:31]}  e5 {[%clk 0:01:15]} 36. Qh4 {[%clk 0:00:24]}  Rxa3 {[%clk 0:01:15]} 0-1


[Site "https://www.chess.com"]

[Event "Titled Tuesday Blitz May 30 Early 2023"]
[White "Herrera Reyes, Jose Antonio"]
[Black "Kozak, Adam"]
[WhiteFideId "2274914"]
[BlackFideId "753246"]
[WhiteElo "2272"]
[BlackElo "2469"]
[Result "1-0"]
[Round "08"]
[TimeControl "180+2"]
[Date "2023.05.30"]
[WhiteClock "0:00:50"]
[BlackClock "0:00:05"]

1. Nf3 {[%clk 0:03:00]}  c5 {[%clk 0:02:53]} 2. g3 {[%clk 0:03:01]}  h5 {[%clk 0:02:52]} 3. h4 {[%clk 0:03:00]}  Nc6 {[%clk 0:02:51]} 4. Bg2 {[%clk 0:03:01]}  g6 {[%clk 0:02:52]} 5. d3 {[%clk 0:03:02]}  Bg7 {[%clk 0:02:52]} 6. Nc3 {[%clk 0:03:02]}  d6 {[%clk 0:02:53]} 7. O-O {[%clk 0:03:02]}  Rb8 {[%clk 0:02:53]} 8. Ng5 {[%clk 0:03:02]}  Bd7 {[%clk 0:02:42]} 9. a4 {[%clk 0:03:02]}  Nh6 {[%clk 0:02:39]} 10. e4 {[%clk 0:02:57]}  Nd4 {[%clk 0:02:38]} 11. Nd5 {[%clk 0:02:48]}  e6 {[%clk 0:02:36]} 12. Ne3 {[%clk 0:02:47]}  O-O {[%clk 0:02:31]} 13. c3 {[%clk 0:02:47]}  Nc6 {[%clk 0:02:31]} 14. Nc4 {[%clk 0:02:46]}  Qe7 {[%clk 0:02:27]} 15. Bf4 {[%clk 0:02:44]}  e5 {[%clk 0:02:27]} 16. Bd2 {[%clk 0:02:43]}  f5 {[%clk 0:02:24]} 17. f4 {[%clk 0:02:20]}  fxe4 {[%clk 0:02:09]} 18. dxe4 {[%clk 0:02:18]}  Rbe8 {[%clk 0:02:01]} 19. Be3 {[%clk 0:02:17]}  Ng4 {[%clk 0:02:00]} 20. Qd5+ {[%clk 0:01:58]}  Be6 {[%clk 0:01:55]} 21. Nxe6 {[%clk 0:01:26]}  Qxe6 {[%clk 0:01:55]} 22. f5 {[%clk 0:01:27]}  Qxd5 {[%clk 0:01:46]} 23. exd5 {[%clk 0:01:28]}  Ne7 {[%clk 0:01:43]} 24. fxg6 {[%clk 0:01:24]}  Nxg6 {[%clk 0:01:14]} 25. Be4 {[%clk 0:01:22]}  Nh8 {[%clk 0:01:07]} 26. Bd2 {[%clk 0:01:12]}  Rd8 {[%clk 0:00:57]} 27. a5 {[%clk 0:01:12]}  Nf6 {[%clk 0:00:51]} 28. Bg2 {[%clk 0:01:11]}  Nf7 {[%clk 0:00:49]} 29. Rad1 {[%clk 0:01:06]}  Rfe8 {[%clk 0:00:33]} 30. Ne3 {[%clk 0:01:01]}  Nh6 {[%clk 0:00:28]} 31. Nc4 {[%clk 0:00:53]}  Nf7 {[%clk 0:00:24]} 32. Rf5 {[%clk 0:00:51]}  Nh6 {[%clk 0:00:05]} 33. Bxh6 {[%clk 0:00:50]} 1-0


[Site "https://www.chess.com"]

[Event "Titled Tuesday Blitz May 30 Early 2023"]
[White "Shuvalova, Polina"]
[Black "Fridman, Daniel"]
[WhiteFideId "24171760"]
[BlackFideId "11600454"]
[WhiteElo "2281"]
[BlackElo "2525"]
[Result "1/2-1/2"]
[Round "08"]
[TimeControl "180+2"]
[Date "2023.05.30"]
[WhiteClock "0:00:08"]
[BlackClock "0:00:10"]

1. e4 {[%clk 0:02:55]}  c6 {[%clk 0:02:59]} 2. d4 {[%clk 0:02:54]}  d5 {[%clk 0:02:59]} 3. exd5 {[%clk 0:02:55]}  cxd5 {[%clk 0:03:00]} 4. Bd3 {[%clk 0:02:56]}  Nc6 {[%clk 0:03:00]} 5. c3 {[%clk 0:02:56]}  Qc7 {[%clk 0:03:01]} 6. Ne2 {[%clk 0:02:56]}  Bg4 {[%clk 0:03:00]} 7. O-O {[%clk 0:02:56]}  e6 {[%clk 0:03:00]} 8. Qe1 {[%clk 0:02:57]}  Bd6 {[%clk 0:02:58]} 9. f3 {[%clk 0:02:57]}  Bh5 {[%clk 0:02:56]} 10. Qh4 {[%clk 0:02:56]}  Bg6 {[%clk 0:02:38]} 11. Bxg6 {[%clk 0:02:56]}  fxg6 {[%clk 0:02:38]} 12. Re1 {[%clk 0:02:56]}  Nf6 {[%clk 0:02:25]} 13. Nf4 {[%clk 0:02:54]}  Bxf4 {[%clk 0:02:25]} 14. Rxe6+ {[%clk 0:02:39]}  Kf7 {[%clk 0:02:23]} 15. Bxf4 {[%clk 0:02:39]}  Qb6 {[%clk 0:02:16]} 16. Re2 {[%clk 0:02:38]}  Rhe8 {[%clk 0:02:07]} 17. Rxe8 {[%clk 0:02:29]}  Rxe8 {[%clk 0:02:05]} 18. Qf2 {[%clk 0:02:29]}  Qa6 {[%clk 0:01:57]} 19. Nd2 {[%clk 0:02:27]}  Re2 {[%clk 0:01:54]} 20. Qf1 {[%clk 0:01:51]}  Nh5 {[%clk 0:01:49]} 21. Bg5 {[%clk 0:01:46]}  h6 {[%clk 0:01:41]} 22. c4 {[%clk 0:01:45]}  Nxd4 {[%clk 0:01:37]} 23. Nb3 {[%clk 0:01:39]}  Qxc4 {[%clk 0:00:48]} 24. Rc1 {[%clk 0:01:27]}  Nc2 {[%clk 0:00:48]} 25. Bd2 {[%clk 0:01:15]}  Re7 {[%clk 0:00:42]} 26. Qd1 {[%clk 0:00:36]}  Rc7 {[%clk 0:00:42]} 27. Na1 {[%clk 0:00:36]}  Qd4+ {[%clk 0:00:17]} 28. Kh1 {[%clk 0:00:34]}  Qxb2 {[%clk 0:00:16]} 29. Nxc2 {[%clk 0:00:30]}  Qxa2 {[%clk 0:00:16]} 30. Be3 {[%clk 0:00:29]}  b6 {[%clk 0:00:14]} 31. Nb4 {[%clk 0:00:26]}  Rxc1 {[%clk 0:00:12]} 32. Bxc1 {[%clk 0:00:25]}  Qc4 {[%clk 0:00:13]} 33. Qxd5+ {[%clk 0:00:24]}  Qxd5 {[%clk 0:00:13]} 34. Nxd5 {[%clk 0:00:25]}  Ke6 {[%clk 0:00:13]} 35. Nc7+ {[%clk 0:00:22]}  Kd7 {[%clk 0:00:13]} 36. Nb5 {[%clk 0:00:22]}  a6 {[%clk 0:00:14]} 37. Nc3 {[%clk 0:00:21]}  Nf6 {[%clk 0:00:13]} 38. Kg1 {[%clk 0:00:19]}  Kc6 {[%clk 0:00:12]} 39. Kf2 {[%clk 0:00:19]}  b5 {[%clk 0:00:13]} 40. Ke3 {[%clk 0:00:19]}  b4 {[%clk 0:00:14]} 41. Ne4 {[%clk 0:00:19]}  Nd5+ {[%clk 0:00:10]} 42. Kd4 {[%clk 0:00:19]}  Nb6 {[%clk 0:00:10]} 43. Bb2 {[%clk 0:00:13]}  a5 {[%clk 0:00:11]} 44. Kd3 {[%clk 0:00:13]}  a4 {[%clk 0:00:10]} 45. Bxg7 {[%clk 0:00:14]}  h5 {[%clk 0:00:10]} 46. Kc2 {[%clk 0:00:13]}  Kb5 {[%clk 0:00:10]} 47. Nd6+ {[%clk 0:00:12]}  Kc5 {[%clk 0:00:09]} 48. Ne4+ {[%clk 0:00:11]}  Kc4 {[%clk 0:00:10]} 49. Nd2+ {[%clk 0:00:09]}  Kb5 {[%clk 0:00:10]} 50. g4 {[%clk 0:00:08]}  Nd5 {[%clk 0:00:11]} 51. gxh5 {[%clk 0:00:07]}  gxh5 {[%clk 0:00:12]} 52. Be5 {[%clk 0:00:06]}  Ne3+ {[%clk 0:00:12]} 53. Kd3 {[%clk 0:00:06]}  Nd5 {[%clk 0:00:10]} 54. f4 {[%clk 0:00:05]}  a3 {[%clk 0:00:08]} 55. Kc2 {[%clk 0:00:05]}  Ka4 {[%clk 0:00:08]} 56. f5 {[%clk 0:00:01]}  Ne3+ {[%clk 0:00:08]} 57. Kd3 {[%clk 0:00:02]}  Nxf5 {[%clk 0:00:09]} 58. Nc4 {[%clk 0:00:02]}  b3 {[%clk 0:00:08]} 59. Nb6+ {[%clk 0:00:01]}  Kb5 {[%clk 0:00:08]} 60. Nd5 {[%clk 0:00:01]}  b2 {[%clk 0:00:08]} 61. Nc3+ {[%clk 0:00:01]}  Kb4 {[%clk 0:00:07]} 62. Na2+ {[%clk 0:00:01]}  Kb3 {[%clk 0:00:07]} 63. Nc3 {[%clk 0:00:01]}  a2 {[%clk 0:00:08]} 64. Nxa2 {[%clk 0:00:02]}  Kxa2 {[%clk 0:00:08]} 65. Bxb2 {[%clk 0:00:02]}  Kxb2 {[%clk 0:00:09]} 66. Ke4 {[%clk 0:00:02]}  Nh4 {[%clk 0:00:08]} 67. Kf4 {[%clk 0:00:02]}  Ng2+ {[%clk 0:00:07]} 68. Kg5 {[%clk 0:00:03]}  h4 {[%clk 0:00:08]} 69. Kg4 {[%clk 0:00:03]}  Kc3 {[%clk 0:00:08]} 70. Kh3 {[%clk 0:00:04]}  Nf4+ {[%clk 0:00:08]} 71. Kxh4 {[%clk 0:00:05]}  Kd4 {[%clk 0:00:08]} 72. Kg4 {[%clk 0:00:06]}  Ke4 {[%clk 0:00:09]} 73. h3 {[%clk 0:00:07]}  Ke5 {[%clk 0:00:09]} 74. h4 {[%clk 0:00:07]}  Ke4 {[%clk 0:00:10]} 75. h5 {[%clk 0:00:08]}  Nxh5 {[%clk 0:00:10]} 1/2-1/2


[Site "https://www.chess.com"]

[Event "Titled Tuesday Blitz May 30 Early 2023"]
[White "Bachmann, Axel"]
[Black "Veiga, Jose Francisco R P Neves"]
[WhiteFideId "3700488"]
[BlackFideId "1930087"]
[WhiteElo "2605"]
[BlackElo "2320"]
[Result "1-0"]
[Round "08"]
[TimeControl "180+2"]
[Date "2023.05.30"]
[WhiteClock "0:01:20"]
[BlackClock "0:01:26"]

1. e4 {[%clk 0:02:55]}  c5 {[%clk 0:02:48]} 2. Nf3 {[%clk 0:02:48]}  e6 {[%clk 0:02:42]} 3. d4 {[%clk 0:02:48]}  cxd4 {[%clk 0:02:43]} 4. Nxd4 {[%clk 0:02:49]}  Nc6 {[%clk 0:02:41]} 5. Nc3 {[%clk 0:02:48]}  Qc7 {[%clk 0:02:37]} 6. Qd3 {[%clk 0:02:43]}  Nf6 {[%clk 0:02:29]} 7. Ndb5 {[%clk 0:02:40]}  Qb8 {[%clk 0:02:30]} 8. Qg3 {[%clk 0:02:40]}  d6 {[%clk 0:02:29]} 9. Be3 {[%clk 0:02:41]}  h5 {[%clk 0:02:20]} 10. O-O-O {[%clk 0:02:33]}  Ne5 {[%clk 0:02:18]} 11. Nxd6+ {[%clk 0:02:04]}  Bxd6 {[%clk 0:02:10]} 12. Qxg7 {[%clk 0:02:03]}  Ng6 {[%clk 0:02:04]} 13. Qxf6 {[%clk 0:02:02]}  Bd7 {[%clk 0:01:55]} 14. Qd4 {[%clk 0:01:20]}  Ke7 {[%clk 0:01:26]} 15. Bg5+ {[%clk 0:01:20]} 1-0


[Site "https://www.chess.com"]

[Event "Titled Tuesday Blitz May 30 Early 2023"]
[White "Vitiugov, Nikita"]
[Black "NikaVolkov"]
[WhiteFideId "4152956"]
[WhiteElo "2673"]
[BlackElo "2655"]
[Result "1-0"]
[Round "08"]
[TimeControl "180+2"]
[Date "2023.05.30"]
[WhiteClock "0:00:25"]
[BlackClock "0:00:00"]

1. c4 {[%clk 0:03:00]}  e5 {[%clk 0:02:59]} 2. Nc3 {[%clk 0:03:00]}  Nc6 {[%clk 0:02:59]} 3. g3 {[%clk 0:02:59]}  Nf6 {[%clk 0:03:00]} 4. Bg2 {[%clk 0:02:59]}  Be7 {[%clk 0:03:01]} 5. d3 {[%clk 0:02:54]}  O-O {[%clk 0:03:01]} 6. Rb1 {[%clk 0:02:47]}  a5 {[%clk 0:03:00]} 7. e3 {[%clk 0:02:46]}  d6 {[%clk 0:02:57]} 8. Nge2 {[%clk 0:02:46]}  Be6 {[%clk 0:02:58]} 9. Nd5 {[%clk 0:02:45]}  Nb4 {[%clk 0:02:48]} 10. Nxe7+ {[%clk 0:02:37]}  Qxe7 {[%clk 0:02:49]} 11. a3 {[%clk 0:02:35]}  Nc6 {[%clk 0:02:48]} 12. Nc3 {[%clk 0:02:30]}  Qd7 {[%clk 0:02:48]} 13. e4 {[%clk 0:02:25]}  Nd4 {[%clk 0:02:47]} 14. Bg5 {[%clk 0:02:19]}  Ne8 {[%clk 0:02:43]} 15. O-O {[%clk 0:02:17]}  Bh3 {[%clk 0:02:43]} 16. Be3 {[%clk 0:02:14]}  Bxg2 {[%clk 0:02:42]} 17. Kxg2 {[%clk 0:02:15]}  f5 {[%clk 0:02:42]} 18. f4 {[%clk 0:02:02]}  Nf6 {[%clk 0:02:37]} 19. Nd5 {[%clk 0:01:37]}  fxe4 {[%clk 0:02:28]} 20. dxe4 {[%clk 0:01:31]}  Nxd5 {[%clk 0:01:29]} 21. cxd5 {[%clk 0:01:31]}  c5 {[%clk 0:01:28]} 22. fxe5 {[%clk 0:01:24]}  dxe5 {[%clk 0:01:28]} 23. Qh5 {[%clk 0:01:16]}  Qb5 {[%clk 0:01:08]} 24. Bxd4 {[%clk 0:01:16]}  exd4 {[%clk 0:01:08]} 25. e5 {[%clk 0:01:07]}  Qc4 {[%clk 0:01:04]} 26. e6 {[%clk 0:01:05]}  d3 {[%clk 0:00:30]} 27. Qe5 {[%clk 0:01:05]}  d2 {[%clk 0:00:27]} 28. Rfd1 {[%clk 0:00:24]}  Qd3 {[%clk 0:00:21]} 29. e7 {[%clk 0:00:23]}  Rfe8 {[%clk 0:00:04]} 30. Qe6+ {[%clk 0:00:24]}  Kh8 {[%clk 0:00:05]} 31. d6 {[%clk 0:00:24]}  Ra6 {[%clk 0:00:00]} 32. d7 {[%clk 0:00:25]} 1-0


[Site "https://www.chess.com"]

[Event "Titled Tuesday Blitz May 30 Early 2023"]
[White "Dragnev, Valentin"]
[Black "Melikyan, Gnel"]
[WhiteFideId "1634852"]
[BlackFideId "54109990"]
[WhiteElo "2487"]
[BlackElo "2138"]
[Result "0-1"]
[Round "08"]
[TimeControl "180+2"]
[Date "2023.05.30"]
[WhiteClock "0:00:03"]
[BlackClock "0:00:09"]

1. d4 {[%clk 0:03:00]}  Nf6 {[%clk 0:02:54]} 2. Bg5 {[%clk 0:03:00]}  g6 {[%clk 0:02:52]} 3. Bxf6 {[%clk 0:03:00]}  exf6 {[%clk 0:02:52]} 4. e3 {[%clk 0:03:01]}  Bg7 {[%clk 0:02:53]} 5. g3 {[%clk 0:02:57]}  O-O {[%clk 0:02:52]} 6. Bg2 {[%clk 0:02:57]}  c6 {[%clk 0:02:51]} 7. c4 {[%clk 0:02:57]}  d6 {[%clk 0:02:51]} 8. Nc3 {[%clk 0:02:56]}  Re8 {[%clk 0:02:51]} 9. Nge2 {[%clk 0:02:57]}  Nd7 {[%clk 0:02:45]} 10. O-O {[%clk 0:02:57]}  f5 {[%clk 0:02:41]} 11. Qc2 {[%clk 0:02:53]}  a6 {[%clk 0:02:38]} 12. b4 {[%clk 0:02:54]}  Nf6 {[%clk 0:02:24]} 13. b5 {[%clk 0:02:53]}  axb5 {[%clk 0:02:22]} 14. cxb5 {[%clk 0:02:53]}  d5 {[%clk 0:02:19]} 15. bxc6 {[%clk 0:02:53]}  bxc6 {[%clk 0:02:19]} 16. Rfc1 {[%clk 0:02:43]}  Qa5 {[%clk 0:02:16]} 17. Nf4 {[%clk 0:02:43]}  Bd7 {[%clk 0:02:09]} 18. Nd3 {[%clk 0:02:41]}  Reb8 {[%clk 0:01:59]} 19. a4 {[%clk 0:02:39]}  Ne4 {[%clk 0:01:56]} 20. Nxe4 {[%clk 0:02:38]}  fxe4 {[%clk 0:01:56]} 21. Nc5 {[%clk 0:02:38]}  Bc8 {[%clk 0:01:52]} 22. h4 {[%clk 0:02:25]}  Bf8 {[%clk 0:01:51]} 23. Kh2 {[%clk 0:02:18]}  Rb4 {[%clk 0:01:48]} 24. Qe2 {[%clk 0:01:53]}  Rab8 {[%clk 0:01:31]} 25. Ra2 {[%clk 0:01:46]}  Bd6 {[%clk 0:01:23]} 26. Bh3 {[%clk 0:01:41]}  f5 {[%clk 0:01:14]} 27. Rac2 {[%clk 0:01:36]}  Rb1 {[%clk 0:01:06]} 28. Qd1 {[%clk 0:01:24]}  R1b2 {[%clk 0:00:52]} 29. Kg2 {[%clk 0:01:16]}  Qb4 {[%clk 0:00:31]} 30. Rxb2 {[%clk 0:01:12]}  Qxb2 {[%clk 0:00:31]} 31. Rc2 {[%clk 0:01:12]}  Qa3 {[%clk 0:00:29]} 32. h5 {[%clk 0:00:57]}  Kg7 {[%clk 0:00:28]} 33. Kh2 {[%clk 0:00:53]}  g5 {[%clk 0:00:28]} 34. Bf1 {[%clk 0:00:47]}  f4 {[%clk 0:00:28]} 35. Qc1 {[%clk 0:00:29]}  Qxc1 {[%clk 0:00:24]} 36. Rxc1 {[%clk 0:00:29]}  Rb2 {[%clk 0:00:19]} 37. Kg1 {[%clk 0:00:25]}  fxg3 {[%clk 0:00:17]} 38. fxg3 {[%clk 0:00:26]}  Bxg3 {[%clk 0:00:17]} 39. Rc3 {[%clk 0:00:18]}  Bf2+ {[%clk 0:00:16]} 40. Kh1 {[%clk 0:00:17]}  Bg4 {[%clk 0:00:16]} 41. Bg2 {[%clk 0:00:14]}  Bg3 {[%clk 0:00:13]} 42. Rc1 {[%clk 0:00:14]}  Ra2 {[%clk 0:00:10]} 43. Kg1 {[%clk 0:00:09]}  Bf3 {[%clk 0:00:10]} 44. Bxf3 {[%clk 0:00:06]}  exf3 {[%clk 0:00:11]} 45. Rf1 {[%clk 0:00:07]}  g4 {[%clk 0:00:11]} 46. Nd3 {[%clk 0:00:06]}  Bh2+ {[%clk 0:00:11]} 47. Kh1 {[%clk 0:00:06]}  Bd6 {[%clk 0:00:09]} 48. Rg1 {[%clk 0:00:03]}  Rh2# {[%clk 0:00:09]} 0-1


[Site "https://www.chess.com"]

[Event "Titled Tuesday Blitz May 30 Early 2023"]
[White "Streltsov, Alexey"]
[Black "Mahdavi, Reza"]
[WhiteFideId "24104434"]
[BlackFideId "12595926"]
[WhiteElo "2604"]
[BlackElo "2352"]
[Result "0-1"]
[Round "08"]
[TimeControl "180+2"]
[Date "2023.05.30"]
[WhiteClock "0:01:52"]
[BlackClock "0:02:19"]

1. d4 {[%clk 0:03:00]}  Nf6 {[%clk 0:02:59]} 2. Bf4 {[%clk 0:03:01]}  g6 {[%clk 0:02:58]} 3. Nc3 {[%clk 0:03:01]}  d5 {[%clk 0:02:59]} 4. Qd2 {[%clk 0:03:01]}  Bg7 {[%clk 0:02:58]} 5. O-O-O {[%clk 0:03:00]}  O-O {[%clk 0:02:58]} 6. Bh6 {[%clk 0:02:59]}  c5 {[%clk 0:02:57]} 7. Bxg7 {[%clk 0:02:57]}  Kxg7 {[%clk 0:02:58]} 8. dxc5 {[%clk 0:02:58]}  Qa5 {[%clk 0:02:59]} 9. Kb1 {[%clk 0:02:51]}  Rd8 {[%clk 0:02:47]} 10. Ne4 {[%clk 0:02:38]}  Qxd2 {[%clk 0:02:40]} 11. Nxd2 {[%clk 0:02:37]}  Na6 {[%clk 0:02:39]} 12. Nb3 {[%clk 0:02:37]}  Ne4 {[%clk 0:02:38]} 13. Nh3 {[%clk 0:02:20]}  Bxh3 {[%clk 0:02:34]} 14. gxh3 {[%clk 0:02:21]}  Nxf2 {[%clk 0:02:35]} 15. Bg2 {[%clk 0:02:22]}  Nxh1 {[%clk 0:02:34]} 16. Bxh1 {[%clk 0:02:22]}  e6 {[%clk 0:02:34]} 17. h4 {[%clk 0:02:11]}  Rac8 {[%clk 0:02:33]} 18. h5 {[%clk 0:02:11]}  Nxc5 {[%clk 0:02:25]} 19. hxg6 {[%clk 0:02:10]}  hxg6 {[%clk 0:02:23]} 20. Nd4 {[%clk 0:02:10]}  Ne4 {[%clk 0:02:22]} 21. Bf3 {[%clk 0:02:06]}  Ng5 {[%clk 0:02:19]} 22. Bg2 {[%clk 0:02:05]}  Rh8 {[%clk 0:02:19]} 23. Rh1 {[%clk 0:02:02]}  Rh4 {[%clk 0:02:19]} 24. c3 {[%clk 0:02:02]}  Rch8 {[%clk 0:02:20]} 25. h3 {[%clk 0:01:55]}  Nxh3 {[%clk 0:02:19]} 26. Nf3 {[%clk 0:01:52]}  R4h5 {[%clk 0:02:19]} 0-1


[Site "https://www.chess.com"]

[Event "Titled Tuesday Blitz May 30 Early 2023"]
[White "Marra, Eduardo da Costa"]
[Black "Baskakov, Egor"]
[WhiteFideId "2106990"]
[BlackFideId "24197866"]
[WhiteElo "2252"]
[BlackElo "2225"]
[Result "0-1"]
[Round "08"]
[TimeControl "180+2"]
[Date "2023.05.30"]
[WhiteClock "0:00:00"]
[BlackClock "0:00:52"]

1. d4 {[%clk 0:03:00]}  Nf6 {[%clk 0:02:59]} 2. Nc3 {[%clk 0:03:00]}  e6 {[%clk 0:03:00]} 3. Bf4 {[%clk 0:02:58]}  d5 {[%clk 0:03:00]} 4. Nf3 {[%clk 0:02:56]}  Ne4 {[%clk 0:02:58]} 5. Qd3 {[%clk 0:02:51]}  f5 {[%clk 0:02:58]} 6. e3 {[%clk 0:02:48]}  Be7 {[%clk 0:02:55]} 7. Be2 {[%clk 0:02:44]}  O-O {[%clk 0:02:54]} 8. O-O {[%clk 0:02:33]}  g5 {[%clk 0:02:51]} 9. Be5 {[%clk 0:02:32]}  Nd7 {[%clk 0:02:50]} 10. Qd1 {[%clk 0:02:31]}  g4 {[%clk 0:02:49]} 11. Ne1 {[%clk 0:02:11]}  Nxc3 {[%clk 0:02:47]} 12. bxc3 {[%clk 0:02:11]}  Nxe5 {[%clk 0:02:48]} 13. dxe5 {[%clk 0:02:11]}  Bd7 {[%clk 0:02:42]} 14. c4 {[%clk 0:02:08]}  c6 {[%clk 0:02:41]} 15. cxd5 {[%clk 0:02:08]}  cxd5 {[%clk 0:02:42]} 16. c4 {[%clk 0:02:05]}  Bc6 {[%clk 0:02:42]} 17. Nd3 {[%clk 0:01:53]}  Bg5 {[%clk 0:02:24]} 18. Nf4 {[%clk 0:01:47]}  Bxf4 {[%clk 0:02:22]} 19. exf4 {[%clk 0:01:48]}  Rc8 {[%clk 0:02:16]} 20. Qd4 {[%clk 0:01:44]}  dxc4 {[%clk 0:01:59]} 21. Qxa7 {[%clk 0:01:34]}  Bd5 {[%clk 0:01:52]} 22. Rfc1 {[%clk 0:01:29]}  Qc7 {[%clk 0:01:41]} 23. a4 {[%clk 0:01:21]}  Qc5 {[%clk 0:01:37]} 24. Qxc5 {[%clk 0:01:18]}  Rxc5 {[%clk 0:01:38]} 25. Rc3 {[%clk 0:01:18]}  Ra8 {[%clk 0:01:37]} 26. h3 {[%clk 0:01:11]}  h5 {[%clk 0:01:32]} 27. Kh2 {[%clk 0:01:09]}  b5 {[%clk 0:01:29]} 28. Rac1 {[%clk 0:00:23]}  Rxa4 {[%clk 0:01:23]} 29. Kg3 {[%clk 0:00:23]}  b4 {[%clk 0:01:09]} 30. Rxc4 {[%clk 0:00:11]}  Bxc4 {[%clk 0:01:07]} 31. Bxc4 {[%clk 0:00:12]}  Kg7 {[%clk 0:01:04]} 32. Kh4 {[%clk 0:00:00]}  Ra7 {[%clk 0:00:52]} 0-1


[Site "https://www.chess.com"]